[Event "FISU WUMSCC Men 2024"]
[Site "Entebbe"]
[Date "2024.06.30"]
[Round "9.8"]
[White "Jakab, Bela"]
[Black "Wagner, Gerald"]
[Result "1-0"]
[ECO "C11"]
[WhiteElo "2390"]
[BlackElo "1832"]
[Annotator "RC"]
[PlyCount "71"]
[EventDate "2024.06.24"]
[EventType "swiss"]
[EventCountry "UGA"]
[SourceTitle "playchess.com"]
[Source "ChessBase"]
[SourceQuality "1"]
[TimeControl "5400+30"]

1. e4 {[%emt 0:00:03]} e6 {[%emt 0:00:04]} 2. d4 {[%emt 0:00:03]} d5 {[%emt 0:00:10]} 3. Nc3 {[%emt 0:00:03]} Nf6 {[%emt 0:00:07]} 4. e5 {[%emt 0:00:05]} Nfd7 {[%emt 0:00:06]} 5. f4 {[%emt 0:00:03]} c5 {[%emt 0:00:13]} 6. Nf3 {[%emt 0:00:04]} Nc6 {[%emt 0:00:10]} 7. Be3 {[%emt 0:00:10]} a6 {[%emt 0:00:32]} 8. Qd2 {[%emt 0:00:08]} Qc7 {[%emt 0:01:12]} 9. Qf2 {[%emt 0:07:45]} cxd4 {[%emt 0:11:20]} 10. Nxd4 {[%emt 0:00:07]} Bb4 {[%emt 0:02:25]} 11. Bd3 {[%emt 0:04:11]} Na5 {[%emt 0:27:21]} 12. O-O {[%emt 0:03:03]} Nc4 {[%emt 0:09:07]} 13. Bxc4 {[%emt 0:11:57]} Qxc4 {[%emt 0:00:23]} 14. f5 {[%emt 0:01:02]} Nxe5 {[%emt 0:14:48]} 15. Qg3 {[%emt 0:02:47]} O-O {[%emt 0:10:03]} 16. Qxe5 {[%emt 0:06:00]} f6 {[%emt 0:00:21]} 17. Qg3 {[%emt 0:00:09]} e5 {[%emt 0:00:12]} 18. Nb3 {[%emt 0:00:17]} Kh8 {[%emt 0:02:16]} 19. Bd2 {[%emt 0:02:52]} b5 {[%emt 0:12:14]} 20. a3 {[%emt 0:07:20]} Bc5+ {[%emt 0:01:28]} 21. Nxc5 {[%emt 0:00:16]} Qxc5+ {[%emt 0:00:07]} 22. Qf2 {[%emt 0:04:42]} Qc6 {[%emt 0:04:18]} 23. Rac1 {[%emt 0:02:14]} Bb7 {[%emt 0:01:10]} 24. Ne2 {[%emt 0:00:26]} d4 {[%emt 0:00:49]} 25. c3 {[%emt 0:00:09]} d3 {[%emt 0:00:11]} 26. Ng3 {[%emt 0:00:07]} Rfe8 {[%emt 0:00:15]} 27. Rfe1 {[%emt 0:00:38]} Rad8 {[%emt 0:01:17]} 28. Re4 {[%emt 0:00:54]} Qd5 {[%emt 0:01:02]} 29. c4 {[%emt 0:03:12]} Qd7 {[%emt 0:00:44]} 30. Rh4 {[%emt 0:00:15]} e4 {[%emt 0:00:22]} 31. Qe3 {[%emt 0:01:00]} bxc4 {[%emt 0:00:11]} 32. Rxc4 {[%emt 0:00:16]} Bd5 {[%emt 0:00:52]} 33. Rc5 {[%emt 0:00:34]} Qa4 {[%emt 0:00:36]} 34. Rc7 {[%emt 0:01:00]} Qd1+ {[%emt 0:00:13]} 35. Nf1 {[%emt 0:00:04]} Rg8 {[%emt 0:00:22]} 36. Rxh7+ {[%emt 0:00:16]} 1-0

[Event "FISU WUMSCC Men 2024"]
[Site "Entebbe"]
[Date "2024.06.30"]
[Round "9.9"]
[White "Mthembu, Lovers"]
[Black "Alharthi, Ahmed Mohammed A"]
[Result "1-0"]
[ECO "C54"]
[WhiteElo "1876"]
[BlackElo "1951"]
[Annotator "RC"]
[PlyCount "89"]
[EventDate "2024.06.24"]
[EventType "swiss"]
[EventCountry "UGA"]
[SourceTitle "playchess.com"]
[Source "ChessBase"]
[SourceQuality "1"]
[TimeControl "5400+30"]

1. e4 {[%emt 0:00:03]} e5 {[%emt 0:02:18]} 2. Nf3 {[%emt 0:00:12]} Nc6 {[%emt 0:00:05]} 3. Bc4 {[%emt 0:01:30]} Bc5 {[%emt 0:01:12]} 4. O-O {[%emt 0:00:16]} d6 {[%emt 0:02:05]} 5. h3 {[%emt 0:00:22]} Nf6 {[%emt 0:00:58]} 6. d3 {[%emt 0:01:46]} h6 {[%emt 0:01:37]} 7. c3 {[%emt 0:00:13]} a6 {[%emt 0:01:30]} 8. Re1 {[%emt 0:03:15]} O-O {[%emt 0:01:26]} 9. Nbd2 {[%emt 0:04:00]} Ba7 {[%emt 0:10:17]} 10. Bb3 {[%emt 0:00:56]} Re8 {[%emt 0:00:42]} 11. Nf1 {[%emt 0:00:25]} Be6 {[%emt 0:01:41]} 12. Bc2 {[%emt 0:00:42]} d5 {[%emt 0:00:52]} 13. exd5 {[%emt 0:02:34]} Nxd5 {[%emt 0:01:54]} 14. Ng3 {[%emt 0:08:15]} Qd6 {[%emt 0:13:56]} 15. Nh4 {[%emt 0:07:32]} Qe7 {[%emt 0:02:16]} 16. Nhf5 {[%emt 0:11:09]} Qf6 {[%emt 0:07:06]} 17. Qf3 {[%emt 0:09:25]} Rad8 {[%emt 0:22:09]} 18. Bd2 {[%emt 0:05:26]} Bxf5 {[%emt 0:05:18]} 19. Qxf5 {[%emt 0:16:36]} Qxf5 {[%emt 0:02:17]} 20. Nxf5 {[%emt 0:00:02]} Re6 {[%emt 0:00:56]} 21. Re2 {[%emt 0:07:10]} b5 {[%emt 0:04:27]} 22. g3 {[%emt 0:02:35]} Nf6 {[%emt 0:04:18]} 23. Rae1 {[%emt 0:03:01]} Ree8 {[%emt 0:00:58]} 24. Kg2 {[%emt 0:00:46]} Bc5 {[%emt 0:07:52]} 25. f4 {[%emt 0:03:15]} exf4 {[%emt 0:00:57]} 26. Rxe8+ {[%emt 0:00:11]} Nxe8 {[%emt 0:01:00]} 27. Bxf4 {[%emt 0:00:10]} Nd6 {[%emt 0:00:48]} 28. d4 {[%emt 0:04:36]} Nxf5 {[%emt 0:01:07]} 29. Bxc7 {[%emt 0:02:55]} Rd7 {[%emt 0:00:17]} 30. Bxf5 {[%emt 0:00:17]} Rxc7 {[%emt 0:00:09]} 31. dxc5 {[%emt 0:00:14]} g6 {[%emt 0:00:53]} 32. Re8+ {[%emt 0:02:18]} Kg7 {[%emt 0:00:09]} 33. Rc8 {[%emt 0:00:48]} Re7 {[%emt 0:01:32]} 34. Rxc6 {[%emt 0:02:23]} gxf5 {[%emt 0:00:02]} 35. Kf3 {[%emt 0:00:19]} Re5 {[%emt 0:00:50]} 36. b4 {[%emt 0:00:39]} Rd5 {[%emt 0:00:31]} 37. Ke3 {[%emt 0:00:51]} Re5+ {[%emt 0:00:28]} 38. Kd4 {[%emt 0:00:18]} Re4+ {[%emt 0:01:20]} 39. Kd3 {[%emt 0:00:16]} Re1 {[%emt 0:00:17]} 40. Rxa6 {[%emt 0:00:23]} Rg1 {[%emt 0:00:07]} 41. c6 {[%emt 0:00:38]} Rxg3+ {[%emt 0:00:06]} 42. Kd4 {[%emt 0:00:48]} f4 {[%emt 0:01:40]} 43. c7 {[%emt 0:01:13]} f3 {[%emt 0:00:08]} 44. c8=Q {[%emt 0:00:08]} f2 {[%emt 0:00:05]} 45. Qf5 {[%emt 0:00:11]} 1-0

[Event "FISU WUMSCC Men 2024"]
[Site "Entebbe"]
[Date "2024.06.30"]
[Round "9.10"]
[White "Almuntasir, mohamed khalifah"]
[Black "Musasizi, Emmanuel"]
[Result "1/2-1/2"]
[ECO "B40"]
[WhiteElo "1724"]
[BlackElo "1966"]
[Annotator "RC"]
[PlyCount "80"]
[EventDate "2024.06.24"]
[EventType "swiss"]
[EventCountry "UGA"]
[SourceTitle "playchess.com"]
[Source "ChessBase"]
[SourceQuality "1"]
[TimeControl "5400+30"]

1. e4 {[%emt 0:00:04]} c5 {[%emt 0:01:16]} 2. Nf3 {[%emt 0:00:08]} e6 {[%emt 0:00:11]} 3. Nc3 {[%emt 0:00:06]} a6 {[%emt 0:00:15]} 4. g3 {[%emt 0:00:06]} d5 {[%emt 0:00:08]} 5. exd5 {[%emt 0:00:03]} exd5 {[%emt 0:00:09]} 6. d4 {[%emt 0:00:07]} Nc6 {[%emt 0:00:40]} 7. Bg2 {[%emt 0:00:13]} Nf6 {[%emt 0:00:15]} 8. O-O {[%emt 0:00:15]} c4 {[%emt 0:00:22]} 9. Bg5 {[%emt 0:00:47]} Be7 {[%emt 0:00:11]} 10. Ne5 {[%emt 0:00:17]} Be6 {[%emt 0:01:06]} 11. f4 {[%emt 0:01:00]} g6 {[%emt 0:00:30]} 12. Re1 {[%emt 0:01:58]} Nxe5 {[%emt 0:03:31]} 13. Rxe5 {[%emt 0:02:16]} O-O {[%emt 0:01:46]} 14. h3 {[%emt 0:04:39]} Kg7 {[%emt 0:01:59]} 15. Qd2 {[%emt 0:00:28]} h5 {[%emt 0:05:31]} 16. f5 {[%emt 0:01:46]} Bxf5 {[%emt 0:05:45]} 17. Bh6+ {[%emt 0:00:09]} Kh7 {[%emt 0:00:25]} 18. Bxf8 {[%emt 0:00:38]} Bxf8 {[%emt 0:00:17]} 19. Rxf5 {[%emt 0:02:30]} gxf5 {[%emt 0:02:38]} 20. Qg5 {[%emt 0:00:02]} Bg7 {[%emt 0:02:07]} 21. Qxf5+ {[%emt 0:00:10]} Kg8 {[%emt 0:00:21]} 22. Nxd5 {[%emt 0:00:44]} Nxd5 {[%emt 0:01:00]} 23. Bxd5 {[%emt 0:00:08]} Bxd4+ {[%emt 0:01:34]} 24. Kh1 {[%emt 0:00:06]} Qf6 {[%emt 0:07:00]} 25. Qxf6 {[%emt 0:01:05]} Bxf6 {[%emt 0:00:08]} 26. Bxc4 {[%emt 0:00:13]} b5 {[%emt 0:02:40]} 27. Bd5 {[%emt 0:00:29]} Rd8 {[%emt 0:01:06]} 28. Rd1 {[%emt 0:00:07]} Kg7 {[%emt 0:00:22]} 29. c3 {[%emt 0:00:19]} b4 {[%emt 0:04:27]} 30. cxb4 {[%emt 0:00:16]} Bxb2 {[%emt 0:00:08]} 31. Bb3 {[%emt 0:00:16]} Rxd1+ {[%emt 0:01:08]} 32. Bxd1 {[%emt 0:00:02]} Ba3 {[%emt 0:00:21]} 33. Be2 {[%emt 0:00:07]} Bxb4 {[%emt 0:57:43]} 34. Bxa6 {[%emt 0:00:22]} Be1 {[%emt 0:00:00]} 35. Kg2 {[%emt 0:00:11]} Kf6 {[%emt 0:00:00]} 36. Bc4 {[%emt 0:00:10]} h4 {[%emt 0:00:00]} 37. g4 {[%emt 0:00:08]} Ke7 {[%emt 0:00:00]} 38. Kf3 {[%emt 0:00:02]} f6 {[%emt 0:00:00]} 39. Kf4 {[%emt 0:00:12]} Kd6 {[%emt 0:00:00]} 40. Ke4 {[%emt 0:00:36]} Kc5 {[%emt 0:00:00]} 1/2-1/2

[Event "FISU WUMSCC Men 2024"]
[Site "Entebbe"]
[Date "2024.06.30"]
[Round "9.12"]
[White "Alinda Collins"]
[Black "Hemeni, Simamnkele"]
[Result "0-1"]
[ECO "B34"]
[WhiteElo "1845"]
[BlackElo "1866"]
[Annotator "NA RC"]
[PlyCount "95"]
[EventDate "2024.06.24"]
[EventType "swiss"]
[EventCountry "UGA"]
[SourceTitle "playchess.com"]
[Source "ChessBase"]
[SourceQuality "1"]
[TimeControl "5400+30"]

1. e4 {[%emt 0:00:05]} c5 {[%emt 0:00:02]} 2. Nf3 {[%emt 0:00:11]} g6 {[%emt 0:00:03]} 3. Nc3 {[%emt 0:00:42]} Bg7 {[%emt 0:00:11]} 4. d4 {[%emt 0:00:37]} cxd4 {[%emt 0:00:07]} 5. Nxd4 {[%emt 0:00:09]} Nc6 {[%emt 0:00:15]} 6. Be3 {[%emt 0:00:23]} Nf6 {[%emt 0:00:10]} 7. f3 {[%emt 0:00:25]} O-O {[%emt 0:00:46]} 8. Qd2 {[%emt 0:00:11]} d5 {[%emt 0:00:16]} 9. O-O-O {[%emt 0:00:37]} dxe4 {[%emt 0:19:15]} 10. Nxc6 {[%emt 0:01:10]} Qxd2+ {[%emt 0:00:05]} 11. Rxd2 {[%emt 0:00:19]} bxc6 {[%emt 0:00:04]} 12. Nxe4 {[%emt 0:00:55]} Nd5 {[%emt 0:01:01] B34: Sicilian: Accelerated Dragon with 5 Nc3: sidelines.} 13. Bc5 {[%emt 0:05:54]} Bh6 {[%emt 1:14:45]} 14. c4 {[%emt 0:00:30]} f5 {[%emt 0:00:00]} 15. cxd5 {[%emt 0:00:40]} fxe4 {[%emt 0:00:00]} 16. dxc6 $2 {[%emt 0:01:04]} (16. Bc4 $1 $11 {and White is okay.} Rd8 (16... Bxd2+ 17. Kxd2 Rd8 18. Bxe7 $14) 17. d6+ (17. dxc6+ Kg7 $17) 17... e6 18. fxe4) 16... Be6 {[%emt 0:00:00]} 17. fxe4 $2 {[%emt 0:02:20]} (17. Kd1 {was worth a try.} Bxd2 (17... Bxa2 18. Ba6 $11) (17... exf3 18. Ba6 $17) 18. Kxd2 exf3 (18... Bxa2 19. Ba6 $11) 19. gxf3) 17... Rad8 {[%emt 0:00:00]} 18. Bxe7 {[%emt 0:01:48]} Rxf1+ {[%emt 0:00:00]} ({Don't play} 18... Bxd2+ 19. Kc2 $19) 19. Rxf1 {[%emt 0:00:22]} Rxd2 {[%emt 0:00:00]} 20. Kb1 {[%emt 0:01:17]} Bg7 {[%emt 0:00:00]} 21. Bf6 {[%emt 0:01:39]} Rd6 {[%emt 0:00:00]} 22. c7 {[%emt 0:05:21]} Rc6 {[%emt 0:00:00]} 23. Bd8 {[%emt 0:01:29]} Be5 {[%emt 0:00:00]} 24. Bf6 {[%emt 0:03:04]} Bxc7 {[%emt 0:00:00]} 25. g3 {[%emt 0:01:24]} Bc4 {[%emt 0:00:00]} 26. Rf3 {[%emt 0:00:30]} Be2 {[%emt 0:00:00]} 27. Rc3 {[%emt 0:00:13]} Rxc3 {[%emt 0:00:00]} 28. bxc3 {[%emt 0:00:16]} Bd3+ {[%emt 0:00:00]} 29. Kb2 {[%emt 0:00:08]} Bxe4 {[%emt 0:00:00]} 30. c4 {[%emt 0:00:32]} Bb6 {[%emt 0:00:00]} 31. Kb3 {[%emt 0:00:29]} Kf7 {[%emt 0:00:00]} 32. Be5 {[%emt 0:00:43]} Ke6 {[%emt 0:00:00]} 33. Bf4 {[%emt 0:00:25]} Bg1 {[%emt 0:00:00]} 34. h4 {[%emt 0:01:48]} Kd7 {[%emt 0:00:00]} 35. Kb4 {[%emt 0:00:21]} Kc6 {[%emt 0:00:00]} 36. Bb8 {[%emt 0:01:48]} Bf5 {[%emt 0:00:00]} 37. Ka5 {[%emt 0:00:48]} Be6 {[%emt 0:00:00]} 38. Kb4 {[%emt 0:00:57]} Bc5+ {[%emt 0:00:00]} 39. Kc3 {[%emt 0:00:17]} a6 {[%emt 0:00:00]} 40. Kd3 {[%emt 0:01:07]} Bd6 {[%emt 0:00:00]} 41. Bxd6 {[%emt 0:00:08]} Kxd6 {[%emt 0:00:00]} 42. Kd4 {[%emt 0:00:12]} Kc6 {[%emt 0:00:00]} 43. a3 {[%emt 0:00:21]} a5 {[%emt 0:00:00]} 44. Ke5 {[%emt 0:00:37]} Bxc4 {[%emt 0:00:00]} 45. Kf6 {[%emt 0:00:05]} Bd3 {[%emt 0:00:00]} 46. g4 {[%emt 0:00:18]} Be2 {[%emt 0:00:00]} 47. g5 {[%emt 1:09:21]} Bh5 {[%emt 0:17:00]} 48. Ke5 {[%emt 0:00:30]} 0-1